Cogmind - Beta 17 @@@ ROGUE MODE // 2026.07.22 @ 22:04:55 // Halloween2019/Abominations Player: [THREAT] Result: Core destroyed Performance ------------- Evolutions (1) 500 Regions Visited (2) 400 Robots Destroyed (6) 30 Value Destroyed (82) 82 Prototype IDs (0) 0 Alien Tech Used (0) 0 Bonus (0) 0 TOTAL SCORE: 1012 Bonus ------- None Cogmind --------- Core Integrity 0/400 Matter 249/300 Energy 100/100 System Corruption 2% Temperature Cool (0) Movement Core (100) Ox1 Location -9/Materials Parts ------- > --- POWER (1) -------- (None) > --- PROPULSION (4) --- (None) > --- UTILITY (2) ------ Small Storage Unit > --- WEAPON (2) ------- Small Laser > --- INVENTORY (8) ---- Deuterium Engine Deuterium Engine Deuterium Engine Targeting Computer Improved Datajack Mining Laser Peak State ------------ > --- POWER ------------ Deuterium Engine > --- PROPULSION ------- Wheel Wheel Wheel Wheel > --- UTILITY ---------- Small Storage Unit Tractor Beam > --- WEAPON ----------- Assault Rifle Assault Rifle > --- INVENTORY -------- Deuterium Engine Deuterium Engine Deuterium Engine Shock Rifle Shock Rifle Small Laser Improved Datajack Mining Laser [Rating: 13] Favorites ----------- Power Light Ion Engine Engine Light Ion Engine Propulsion Wheel Leg Aluminum Leg Wheel Wheel Utility Small Storage Unit Device Tractor Beam Storage Small Storage Unit Weapon Assault Rifle Energy Gun Shock Rifle Ballistic Gun Assault Rifle Build | -11 -10 -9 ------- Run | Yrd Mat Mat Slots Evolved 2 | . . 2 Power . | . . . Propulsion 2 | . . 2 Utility . | . . . Weapon . | . . . Parts Attached 14 | 7 . 7 Power 2 | 1 . 1 Engine 2 | 1 . 1 Core . | . . . Reactor . | . . . Propulsion 5 | 2 . 3 Treads . | . . . Leg 1 | 1 . . Wheel 4 | 1 . 3 Hover . | . . . Flight . | . . . Utility 2 | 2 . . Device 1 | 1 . . Storage 1 | 1 . . Processor . | . . . Hackware . | . . . Protection . | . . . Artifact . | . . . Weapon 5 | 2 . 3 Energy Gun 3 | . . 3 Energy Cannon . | . . . Ballistic Gun 2 | 2 . . Ballistic Cannon . | . . . Launcher . | . . . Special Weapon . | . . . Impact Weapon . | . . . Slashing Weapon . | . . . Piercing Weapon . | . . . Special Melee Weapon . | . . . Unidentified Prototypes . | . . . Parts Lost 11 | . 1 10 Power 2 | . 1 1 Propulsion 4 | . . 4 Utility 1 | . . 1 Weapon 4 | . . 4 Highest Loss Streak 8 | . 1 8 To Critical Strikes . | . . . Average Backups 5 | 3 6 6 Power 1 | . 1 2 Propulsion 1 | 1 3 . Utility . | . . . Weapon 1 | . 2 2 Tool/Special . | . . . Unused Backups 8 | 3 . 5 Power 4 | . . 4 Propulsion 2 | 2 . . Utility 1 | 1 . . Weapon . | . . . Tool/Special 1 | . . 1 Average Slot Usage (%) 74 | . 100 65 Engine 6 | . 14 3 Leg 3 | . 14 . Wheel 18 | . 14 19 Device 11 | . 14 10 Storage 11 | . 14 11 Energy Gun 7 | . . 10 Ballistic Gun 15 | . 28 10 Peak Build Rating 13 | 7 7 13 Average Rating 7 | 5 6 8 On Entrance 4 | . 7 6 Avg Prop Armor Cover (%) 8 | 8 8 . Naked Turns . | . . . Heaviest Build 19 | 13 13 19 Greatest Support 40 | 10 10 40 Greatest Overweight (x) 3 | 1 1 3 Average Overweight (x) . | . . . Largest Inventory Capacity 8 | 8 8 8 Average Capacity 7 | 6 8 8 Most Carried 8 | 6 6 8 Average Carried 5 | 3 6 5 Final Capacity 8 | 8 8 8 Final Carried 6 | 6 6 6 Class Distribution -------------------- 78% | Mutant 21% | Scavenger-Mutant Dominant Class ---------------- Mutant | -10/Materials Mutant | -9/Materials Resources | -11 -10 -9 ----------- Run | Yrd Mat Mat Matter Collected 345 | 269 . 76 Remotely 160 | 84 . 76 Salvage Created 181 | 145 . 36 Parts 14 | 9 . 5 Haulers Intercepted . | . . . Recyclers Shooed . | . . . Parts Field Recycled . | . . . Retrieved Matter . | . . . Parts Self-Destructed . | . . . Prevented . | . . . Parts Restored . | . . . Kills | -11 -10 -9 ------- Run | Yrd Mat Mat Combat Hostiles Destroyed 1 | . . 1 Guns 1 | . . 1 Classes Destroyed 4 | 3 . 1 Worker 2 | 2 . . Tunneler 2 | 2 . . Recycler 1 | 1 . . Abomination 1 | . . 1 Best Kill Streak 5 | 5 . 1 Combat Bots Only 1 | . . 1 Max Kills in Single Turn 1 | 1 . 1 Gunslinging . | . . . Exploded . | . . . Melee . | . . . Uniques/NPCs Destroyed . | . . . Combat | -11 -10 -9 -------- Run | Yrd Mat Mat Hostile Shots Fired 60 | . 11 49 Missed 19 | . 3 16 Hits 41 | . 8 33 Melee 25 | . 8 17 Projectile 16 | . . 16 Critical Strikes 4 | . 2 2 Damage Taken 1347 | . 300 1047 Core 543 | . 120 423 Absorbed by Shields . | . . . Core Remaining (%) 76 | 100 52 . Volleys Fired 24 | 12 2 10 Largest 2 | 2 2 2 Hottest 90 | 40 40 90 Shots Fired 44 | 24 4 16 Gun 44 | 24 4 16 Cannon . | . . . Launcher . | . . . Special . | . . . Kinetic 37 | 24 4 9 Thermal 3 | . . 3 Explosive . | . . . Electromagnetic 4 | . . 4 Robot Hit Streak 7 | 5 4 7 Robot Miss Streak 5 | 2 1 5 Penetration Max . | . . . Secondary Targets 1 | . . 1 Max Gunslinging Chain 1 | . . 1 Shots Hit Robots 27 | 15 2 10 Core Hits 12 | 6 1 5 Critical Kills . | . . . Critical Parts Destroyed . | . . . Critical Strikes . | . . . Melee Attacks . | . . . Impact . | . . . Slashing . | . . . Piercing . | . . . Sneak Attacks . | . . . Combat Hostiles . | . . . Follow-up Attacks . | . . . Damage Inflicted 367 | 200 39 128 Guns 340 | 200 39 101 Cannons . | . . . Explosions 27 | . . 27 Melee . | . . . Ramming . | . . . Kinetic 303 | 200 39 64 Thermal 55 | . . 55 Explosive . | . . . Electromagnetic 9 | . . 9 Impact . | . . . Slashing . | . . . Piercing . | . . . Highest Corruption 2 | . . 2 Average Corruption 1 | . . 1 Corruption Purged . | . . . Corruption Blocked . | . . . Effects 1 | . . 1 Alerts 1 | . . 1 Overload Shots . | . . . Overflow Damage . | . . . Projectiles . | . . . Explosions . | . . . Melee . | . . . Knockbacks . | . . . Impact . | . . . Kinetic . | . . . Secondary . | . . . Self-Inflicted Damage . | . . . Shots . | . . . Rammed . | . . . Targets Rammed . | . . . Kicked . | . . . Crushed . | . . . Highest Temperature 30 | 6 . 30 Average Temperature 11 | 6 . 12 Received Heat Transfer 162 | . . 162 Siege Activations . | . . . Martial Activations . | . . . Shielding Activations . | . . . Robots Disrupted . | . . . Combat Hostiles . | . . . Robots Corrupted . | . . . Combat Hostiles . | . . . Parts Fried . | . . . Impact Corruptions . | . . . Robots Melted . | . . . Combat Hostiles . | . . . Parts Melted . | . . . Heat Transferred 62 | . . 62 Parts Sabotaged . | . . . Parts Stolen . | . . . Parts Stripped . | . . . Power Chain Reactions 1 | . . 1 Alert | -11 -10 -9 ------- Run | Yrd Mat Mat Maximum Alert Level . | . . . Low Security (%) 100 | 100 100 100 Level 1 . | . . . Level 2 . | . . . Level 3 . | . . . Level 4 . | . . . Level 5 . | . . . High Security . | . . . Max Security . | . . . Peak Influence 12 | 10 12 . Initial 6 | . 6 . Average 1 | 1 6 . Influence Increases 41 | 25 16 . Destroy 0b10 Robot/NC 25 | 25 . . Successful Hack 16 | . 16 . Influence Decreases 41 | 15 26 . Entered New Map 4 | . 4 . Time Decay 35 | 15 20 . Lost Part 2 | . 2 . Squads Dispatched . | . . . Investigation . | . . . Extermination . | . . . Reinforcement . | . . . Assault . | . . . Garrison . | . . . Intercept . | . . . Searches Triggered . | . . . Construction Impeded . | . . . Haulers Reinforced . | . . . Active Scanning Responses . | . . . Cargo Convoy Interrupts . | . . . Stealth | -11 -10 -9 --------- Run | Yrd Mat Mat Distress Signals 4 | . . 4 Communications Jammed . | . . . Distress Signals . | . . . Times Spotted 9 | . 2 7 Peak Tracking Total 6 | . 2 6 Tactical Retreats . | . . . Traps | -11 -10 -9 ------- Run | Yrd Mat Mat Traps Triggered . | . . . Indirectly . | . . . Trap Hack Attempts . | . . . Triggered . | . . . Disarmed . | . . . Reprogrammed . | . . . Reused . | . . . Traps Extracted . | . . . Installed . | . . . Triggered . | . . . Machines | -11 -10 -9 ---------- Run | Yrd Mat Mat Machines Disabled . | . . . Max in Single Turn . | . . . Machines Repaired . | . . . Machines Dismantled . | . . . Machines Sabotaged . | . . . Overloaded Fab Kills . | . . . Hacking | -11 -10 -9 --------- Run | Yrd Mat Mat Machines Accessed 2 | . 2 . Terminals 2 | . 2 . Fabricators . | . . . Repair Stations . | . . . Recycling Units . | . . . Scanalyzers . | . . . Garrison Access . | . . . Total Hacks 7 | . 7 . Successful 4 | . 4 . Failed 3 | . 3 . Catastrophic . | . . . Database Lockouts . | . . . Manual 3 | . 3 . Terminals 7 | . 7 . Fabricators . | . . . Repair Stations . | . . . Recycling Units . | . . . Scanalyzers . | . . . Garrison Access . | . . . Terminal Hacks 2 | . 2 . Level Access Points 1 | . 1 . Locate Traps 1 | . 1 . Fabricator Hacks . | . . . Repair Station Hacks . | . . . Recycling Unit Hacks . | . . . Scanalyzer . | . . . Garrison Access Hacks . | . . . Unauthorized Hacks 2 | . 2 . Terminals 2 | . 2 . Botnet 2 | . 2 . Fabricators . | . . . Repair Stations . | . . . Recycling Units . | . . . Scanalyzers . | . . . Garrison Access . | . . . Data Cores Recovered . | . . . Used . | . . . Hacking Detections 1 | . 1 . Full Trace Events 1 | . 1 . Feedback Events . | . . . Feedback Blocked . | . . . Robot Schematics Acquired . | . . . Robots Built . | . . . Authchips . | . . . Time . | . . . Total Robot Build Rating . | . . . Part Schematics Acquired . | . . . Parts Built . | . . . Authchips . | . . . Time . | . . . Total Part Build Rating . | . . . Part Studies Acquired . | . . . Parts Repaired . | . . . Time . | . . . Parts Recycled . | . . . Recycled Matter . | . . . Retrieved Matter . | . . . Retrieved Components . | . . . Parts Scanalyzed . | . . . Part Schematics Acquired . | . . . Parts Damaged . | . . . Bothacking | -11 -10 -9 ------------ Run | Yrd Mat Mat Used RIF Installer . | . . . Robots Hacked . | . . . Non-combat . | . . . Combat . | . . . Robot Hacks Applied . | . . . Relay Couplers Released . | . . . Fabnet Peak Effective % . | . . . Robots Rewired . | . . . Allies Hacked . | . . . Hacks Repelled . | . . . Allies | -11 -10 -9 -------- Run | Yrd Mat Mat Total Allies . | . . . Largest Group . | . . . Highest-Rated Group . | . . . Highest-Rated Ally . | . . . Total Orders . | . . . Ally Attacks . | . . . Total Damage . | . . . Kills . | . . . Allies Corrupted . | . . . Allies Melted . | . . . Intel | -11 -10 -9 ------- Run | Yrd Mat Mat Active Infowar (turns) . | . . . Robot Analysis Total . | . . . Derelict Logs Recovered . | . . . Drone Launches . | . . . Drone Recoveries . | . . . Exploration | -11 -10 -9 ------------- Run | Yrd Mat Mat Turns Passed 354 | 117 61 176 Spaces Moved 178 | 63 53 62 Core 10 | 7 . 3 Treads . | . . . Legs 6 | 6 . . Wheels 162 | 50 53 59 Hover . | . . . Flight . | . . . Fastest Speed 50 | 50 80 80 Average Speed 89 | 90 93 85 Slowest Speed 200 | 120 95 200 Overloaded Moves . | . . . Propulsion Burnouts . | . . . Robots Hopped . | . . . Potential Cave-ins . | . . . Cave-ins Triggered . | . . . Exploration Rate (%) 13 | 3 22 14 Regions Visited 2 Branch Regions . Pre-discovered Areas . | . . . Known Exits Taken 1 | . 1 . Unknown Exits Taken 1 | 1 . . Scrap Searched . | . . . Spaces Dug . | . . . Terrain Destroyed . | . . . Melee . | . . . Projectile . | . . . AOE . | . . . Terrain Rammed . | . . . Walls Destroyed . | . . . Machines Disabled . | . . . Actions | -11 -10 -9 --------- Run | Yrd Mat Mat Total 245 | 100 54 91 Wait 2 | . . 2 Move 176 | 62 52 62 Hop . | . . . Pick Up 24 | 16 . 8 Fast Attach . | . . . Attach 14 | 7 . 7 Detach . | . . . Swap . | . . . Drop 5 | 3 . 2 Fire 24 | 12 2 10 Melee . | . . . Ram . | . . . Kick . | . . . Crush . | . . . Escape Stasis . | . . . Rewire . | . . . Trap . | . . . Miscellaneous . | . . . Route ------- -11/Scrapyard -10/Materials (discovered 3 exits: *Mat x3) -9/Materials History --------- Turn | Location | Event 12 | -11/Scrapyard | Discovered new exit (range 15) 118 | -11/Scrapyard | Entered Materials 138 | -10/Materials | Identified exit to Materials 179 | -10/Materials | Entered another Materials area 179 | -9/Materials | Evolved 2 slots: Propulsion x2 284 | -9/Materials | Core integrity fell below 50% 303 | -9/Materials | Lost 8 parts (1p4n3w) 351 | -9/Materials | Core integrity fell below 20% 355 | -9/Materials | Core destroyed Last Messages --------------- Ice Anomaly triggered Shock Trap. The floor emits a surge of raw power. Frozen by Ice Anomaly. 19 Matter blinks away. Frozen by Ice Anomaly. Critical hit (Burn: +37). Forced to warp away. Acquired 27 matter. 41 Matter blinks away. Tractor Beam destroyed. Lesser Abomination follow-up attacks with Katana. System corrupted: IFF burst signal emitted. Frozen by Ice Anomaly. Shock Rifle destroyed. Lesser Abomination spits out Flight Unit. Lesser Abomination absorbs Flight Unit. Unstable Anomaly suddenly flashes brightly. Engulfed by violent ripples tearing at the fabric of space. Map ----- +----------------------------------------------------+ | ?????????????????????????????????????? | | ?????????????????????????????????????? | | ?????????????????????????????????????? | | ?????????????????????????????????????? | | ?????????????????????????????????????? | | ?????????????????????????????????????? | | ?????????????????????????????????????? | | ?????????????????????????????????????? | | ?????????????????????????????????????? | | ?????????????????????????????????????? | | ?????????????????????????????????????? | | ?????????????????????????????????????? | | ????????????? ?????????????????????? | | ????????????? [#????????????????????? | | ?????????????]]%#????????????????????? | | ?????????????%] #????????????????????? | | ???????????#?] # ???????????????????? | | ??????????? # n # #??????????????????? | | ??????????? # [ # #?? ??????????????? | | ?????#####?## # ### #????????????? | | ????? ## # # A# ??????????? | | ????? """ #; ## # ^^; ?????????? | | ????? """ ; ;;;; ;;;;?????????? | | ????? """ ; T % ????????? | | ??# """ ; "" ????????? | | ??# ; @A n ????????? | | ??# || ; A ;;;;;;;;;;;;????????? | | ??# || ;; ;; ????????? | | ??# ;; ; #########?????????? | | ??#########;; ; ##?????????????????? | | ???# ; ; #??????????????????? | | ???# """ ; ; #??????????????????? | | ???# """ ; ;;#########??????????? | | ???# """ ; ; #??????????? | | ???# ; n; #??????????? | | ???# """ ; ; """ #??????????? | | ???# """ # %# """""?#??????????? | | ???# """ # + """"" #??????????? | | ???# # #% """"" #??????????? | | ?########+### # """ #??????????? | | ?# " " # # #??????????? | | ?# """ " ""#####"#+#######??????????? | | ?# """ " " ???? "# " ?????????????? | | ?# """ " " ???? "# """""##??????????? | | ?# # "????? "" % ####+###???? | | ??####+## #????? "" ??? | | ?????# #??????"" ??? | | ?##### #???????# ### ??? | | ?#// ##+###### #??????#???? | | ?# / #??????????? | +----------------------------------------------------+ Best States ------------- Heat Dissipation 28 Energy Generation 14 Energy Capacity 275 Matter Stores 244 Matter Capacity 300 Sight Range 16 Terrain Scan Density 10 Evasion (%) 45 Item Schematics ----------------- None Robot Schematics ------------------ None Fabricated ------------ Nothing Repaired ---------- Nothing Studied --------- None Alien Tech Used ----------------- None Achievements -------------- None Challenges ------------ None Game ------ Seed CatalystRocketMicrothruster Manual? 0 Play Time 00:04:56 Cumulative 89.7 hours Start 2026.07.22 @ 22:01:23 End 2026.07.22 @ 22:04:55 Sessions 1 Manual Loads 0 Difficulty Rogue Special Mode Halloween2019/Abominations Game No. 79 Rogue 49 Adventurer 30 Explorer 0 Win Type - Total 1 Types 1/0/0/0/0/0/0/0/0/0 Lore% 33 Gallery% 37 Achievement% 37 Wizard Run 0 Options --------- Layout 2 ASCII 0 Keyboard 0 Movement Numpad Keybinds 0 Fullscreen 1 Font 16/SmallcapsGlow Map View 25x24 Zoom Use 80% Tactical HUD 0 Map Filters NONE Filters NONE Steam 1 RUN: cb0a01fd-0f51-4de0-8dcc-e75bfe826af6